bitfinex/quotes_ETHUSD_20260130
["timestamp","ask_amount","ask_price","bid_price","bid_amount"]
[1769778713670,4.57723343,2740.9,2739.8,0.02552788]
[1769778713877,4.57723343,2740.9,2739.9,0.02552788]
[1769778715268,4.57723343,2740.9,2740.1,0.02552788]
[1769778715462,4.57723343,2740.9,2739.9,0.02552788]
[1769778715665,4.57723343,2740.9,2740.1,0.02552788]
[1769778715843,4.57723343,2740.9,2739.6,0.02552788]
[1769778715844,4.1601213,2740.7,2739.6,0.02552788]
[1769778716046,4.1601213,2740.7,2739.6,0.002]
[1769778716357,4.1611213,2740.7,2739.6,0.002]
[1769778717674,0.001,2740.7,2739.8,0.02552788]
[1769778717876,0.001,2740.7,2740.0,0.02552788]
[1769778718975,0.001,2740.7,2739.8,0.02552788]
[1769778719180,0.001,2740.7,2739.8,0.36657203]
[1769778719493,0.001,2740.7,2740.0,0.02552788]
[1769778720183,0.001,2740.7,2739.8,0.36657203]
[1769778720371,4.1611213,2740.7,2739.8,0.34104415]
[1769778720676,4.1611213,2740.7,2739.7,0.02552788]
[1769778720980,4.1601213,2740.1,2739.6,0.002]
[1769778721278,4.1601213,2740.1,2738.5,3.38076404]
[1769778721460,4.9251213,2740.1,2738.5,3.38076404]
[1769778721656,0.49251213,2740.0,2739.1,0.02552788]
[1769778721844,0.1024,2740.2,2739.3,0.02552788]
[1769778722051,4.2625213,2740.2,2739.1,0.02552788]
[1769778722250,4.2625213,2740.2,2739.3,0.02552788]
[1769778722580,4.2625213,2740.2,2739.1,0.02552788]
[1769778722951,0.1024,2740.4,2739.5,0.02552788]
[1769778723260,0.001,2740.7,2739.7,0.02552788]
[1769778723580,4.1611213,2740.7,2739.7,0.02552788]
[1769778724082,4.1611213,2740.7,2739.5,0.02552788]
[1769778724980,4.1611213,2740.7,2739.1,0.02552788]
[1769778724981,4.1601213,2740.5,2739.1,0.02552788]
[1769778725180,0.1024,2740.6,2739.5,0.02552788]
[1769778725181,4.1601213,2740.3,2739.5,0.02552788]
[1769778725380,4.1601213,2740.3,2739.3,0.02552788]
[1769778725782,0.42625213,2740.4,2739.5,0.02552788]
[1769778726084,4.1601213,2740.6,2739.7,0.02552788]
[1769778726596,0.766,2740.7,2739.9,0.02552788]
[1769778727095,0.766,2740.7,2739.7,0.02552788]
[1769778727096,0.766,2740.7,2740.0,0.02552788]
[1769778727393,0.001,2740.7,2740.2,0.02552788]
[1769778727575,0.08134782,2741.1,2740.2,0.02552788]
[1769778727772,0.51256,2741.1,2740.2,0.02552788]
[1769778728984,0.51256,2741.1,2740.3,0.02552788]
[1769778729374,4.23077398,2741.2,2740.3,0.02552788]
[1769778730166,0.001,2741.8,2741.1,0.02552788]
[1769778730363,0.001,2741.8,2740.9,0.02552788]
[1769778730569,0.001,2741.8,2741.2,0.02552788]
[1769778730985,0.001,2741.8,2741.4,0.02552788]
[1769778731488,0.001,2741.8,2741.5,0.02552788]
[1769778731688,0.1024,2742.6,2741.7,0.02552788]
[1769778731863,4.23177398,2742.4,2741.4,0.02552788]
[1769778732192,0.4231774,2742.3,2741.6,0.02552788]
[1769778732365,0.4231774,2742.3,2741.4,0.02552788]
[1769778732366,0.001,2742.4,2741.4,0.02552788]
[1769778732568,0.001,2742.4,2741.8,0.02552788]
[1769778732767,0.001,2742.4,2741.9,0.02552788]
[1769778733777,0.001,2742.4,2741.6,0.02552788]
[1769778734093,0.001,2742.4,2741.8,0.02552788]
[1769778734271,0.001,2742.4,2741.6,0.02552788]
[1769778734460,0.001,2742.4,2741.8,0.02552788]
[1769778736276,4.23177398,2742.4,2741.2,0.02552788]
[1769778736475,0.4231774,2742.3,2741.4,0.02552788]
[1769778737460,0.4231774,2742.3,2741.6,0.02552788]
[1769778737686,0.4231774,2742.3,2741.4,0.02552788]
[1769778737881,0.4231774,2742.3,2741.6,0.02552788]
[1769778738566,0.001,2742.4,2741.8,0.02552788]
[1769778739062,0.001,2742.4,2742.0,0.02552788]
[1769778739290,0.001,2742.4,2741.8,0.02552788]
[1769778739459,0.001,2742.4,2742.0,0.02552788]
[1769778739861,0.001,2742.4,2741.6,3.39246248]
[1769778740066,0.31356869,2743.1,2742.3,0.02552788]
[1769778740290,4.54434267,2743.1,2742.1,0.02552788]
[1769778740472,4.54434267,2743.1,2741.9,0.02552788]
[1769778740671,4.54434267,2743.1,2741.7,0.33924625]
[1769778740672,4.23077398,2743.0,2741.6,0.02552788]
[1769778740891,4.23077398,2743.0,2741.0,3.36536641]
[1769778741096,4.23077398,2742.8,2741.7,0.02552788]
[1769778741975,4.23077398,2742.8,2741.9,0.02552788]
[1769778742165,4.23077398,2742.8,2742.0,0.02552788]
[1769778742166,0.001,2742.2,2742.0,0.02552788]
[1769778743903,0.001,2742.2,2741.7,0.02552788]
[1769778744105,0.001,2742.2,2741.2,0.02552788]
[1769778744106,4.54434267,2743.1,2741.9,0.02552788]
[1769778744307,4.23077398,2742.9,2741.6,0.02552788]
[1769778744508,4.23077398,2742.7,2741.1,0.02552788]
[1769778744803,4.23077398,2742.7,2740.9,3.38834056]
[1769778744804,4.33317398,2742.5,2741.0,0.02552788]
[1769778745005,4.23077398,2742.2,2741.2,0.02552788]
[1769778746183,4.23077398,2742.2,2741.0,0.02552788]
[1769778746381,4.65385138,2742.1,2741.0,0.02552788]
[1769778746582,4.65385138,2742.1,2740.5,0.02552788]
[1769778746884,4.23077398,2741.9,2740.5,0.02552788]
[1769778747884,4.23077398,2741.9,2740.7,0.02552788]
[1769778748111,0.4230774,2742.1,2741.1,0.02552788]
[1769778748292,0.765,2741.8,2741.1,0.02552788]
[1769778748637,0.765,2741.8,2740.9,0.02552788]
[1769778749133,4.23077398,2742.0,2740.7,0.02552788]
[1769778749296,0.765,2741.8,2740.9,0.02552788]
[1769778749627,4.99577398,2741.8,2740.6,0.02552788]
[1769778749823,4.23077398,2741.6,2740.4,0.02552788]
[1769778750029,4.23077398,2741.6,2740.6,0.02552788]
[1769778750227,0.4995774,2741.7,2740.6,0.02552788]
[1769778750228,4.99577398,2741.5,2740.6,0.02552788]
[1769778751631,4.23077398,2741.5,2740.6,0.02552788]
[1769778751934,0.765,2741.4,2740.6,0.02552788]
[1769778752717,4.23077398,2741.5,2740.6,0.02552788]
[1769778752919,1.1880774,2741.4,2740.6,0.02552788]
[1769778753797,0.4230774,2741.4,2740.6,0.02552788]
[1769778754020,0.765,2741.6,2740.8,0.02752788]
[1769778754223,0.765,2741.6,2741.0,0.02552788]
[1769778754605,4.23077398,2741.8,2741.2,0.02552788]
[1769778754816,0.765,2741.9,2741.2,0.02552788]
[1769778756409,0.765,2742.0,2741.2,0.02552788]
[1769778756609,0.765,2742.0,2740.8,0.02752788]
[1769778756610,4.1831443,2741.9,2740.8,0.002]
[1769778757032,4.1831443,2741.9,2740.9,0.02552788]
[1769778758007,4.1831443,2741.9,2740.8,0.002]
[1769778760144,4.1831443,2741.9,2740.8,0.02752788]
[1769778760509,4.85307272,2741.8,2740.8,0.02752788]
[1769778760712,4.57337999,2741.7,2740.8,0.02752788]
[1769778760913,4.57337999,2741.7,2740.8,0.002]
[1769778762617,0.765,2741.6,2740.8,0.002]
[1769778763238,4.85307272,2741.6,2740.8,0.002]
[1769778763545,4.08807272,2741.3,2739.8,0.02552788]
[1769778763921,4.08807272,2741.3,2740.0,0.02552788]
[1769778764416,4.08807272,2741.3,2739.8,0.02552788]
[1769778764612,4.08807272,2741.3,2740.0,0.02552788]
[1769778764850,5.00005314,2741.3,2739.8,0.02552788]
[1769778765050,4.08807272,2741.1,2739.8,0.33802659]
[1769778765232,4.08807272,2741.1,2739.8,0.02552788]
[1769778765439,4.08807272,2741.1,2739.9,0.02552788]
[1769778765651,0.765,2741.0,2740.2,0.02552788]
[1769778765849,0.765,2740.9,2740.4,0.02552788]
[1769778766154,0.533838,2741.5,2741.0,0.02552788]
[1769778766351,0.765,2742.0,2740.6,0.02552788]
[1769778766352,4.08807272,2741.9,2740.6,0.02552788]
[1769778766529,4.08807272,2741.9,2740.5,0.02552788]
[1769778766736,4.08807272,2741.9,2740.7,0.02552788]
[1769778766949,4.08807272,2741.9,2741.0,0.002]
[1769778767953,0.765,2741.8,2741.0,0.002]
[1769778768144,1.25030727,2741.7,2741.0,0.002]
[1769778768655,0.765,2741.6,2741.0,0.002]
[1769778770466,0.765,2742.0,2741.1,0.02552788]
[1769778772167,5.10211626,2742.3,2741.1,0.02552788]
[1769778772343,0.765,2741.9,2741.1,0.02552788]
[1769778772757,4.08807272,2741.8,2741.0,0.002]
[1769778772960,1.25030727,2741.9,2741.0,0.002]
[1769778772961,0.48530727,2741.9,2741.0,0.002]
[1769778773139,0.765,2741.8,2741.0,0.002]
[1769778773646,0.765,2741.8,2741.1,0.02552788]
[1769778773849,0.1024,2742.3,2741.3,0.02552788]
[1769778774036,1.18404727,2742.2,2741.3,0.02552788]
[1769778774241,5.27211999,2742.2,2741.1,0.02552788]
[1769778774654,5.27211999,2742.2,2741.3,0.02552788]
[1769778774868,1.18404727,2742.2,2741.3,0.02552788]
[1769778775052,0.765,2742.2,2741.3,0.02552788]
[1769778775459,0.765,2742.1,2741.3,0.02552788]
[1769778778842,0.1024,2742.4,2741.7,0.02552788]
[1769778779041,4.95547272,2742.7,2741.5,0.02552788]
[1769778779244,0.001,2741.9,2741.5,0.02552788]
[1769778780143,0.001,2741.9,2741.7,0.02552788]
[1769778780482,0.19053152,2742.8,2741.8,0.02552788]
[1769778780639,0.765,2742.7,2742.0,0.02552788]
[1769778780845,4.85307272,2742.7,2741.3,3.37106607]
[1769778781045,4.57337999,2742.6,2741.4,0.33710661]
[1769778781279,4.57337999,2742.6,2741.4,0.36263449]
[1769778781780,4.57337999,2742.6,2741.8,0.02552788]
[1769778782156,4.57337999,2742.6,2741.6,0.02552788]
[1769778782357,4.57337999,2742.6,2741.4,0.36263449]
[1769778782574,4.62191072,2742.5,2741.4,0.02552788]
[1769778782774,4.08807272,2742.3,2740.9,3.34508183]
[1769778782980,4.08807272,2742.3,2741.0,0.02752788]
[1769778783152,4.08807272,2742.3,2741.0,0.002]
[1769778783347,0.1024,2742.4,2741.3,0.02552788]
[1769778783549,0.1024,2742.4,2741.5,0.02552788]
[1769778783877,0.765,2742.3,2741.5,0.02552788]
[1769778784261,4.08807272,2742.3,2741.3,0.3650989]
[1769778784452,4.85307272,2742.3,2741.1,0.02552788]
[1769778784858,4.08807272,2742.1,2741.0,0.002]
[1769778785653,4.08807272,2741.9,2741.0,0.002]
[1769778788294,0.765,2741.8,2741.1,0.02552788]
[1769778788583,0.765,2741.8,2741.3,0.02552788]
[1769778789654,0.1024,2742.1,2741.1,0.02552788]
[1769778789866,0.765,2741.9,2741.3,0.02552788]
[1769778790283,0.43511911,2742.0,2741.3,0.02552788]
[1769778790478,0.765,2741.9,2741.1,0.02552788]
[1769778790779,0.001,2741.6,2741.1,0.02552788]
[1769778791173,0.001,2741.6,2741.3,0.02552788]
[1769778791864,0.001,2741.6,2741.1,0.02552788]
[1769778792064,0.001,2741.6,2741.3,0.02552788]
[1769778793486,0.001,2741.6,2741.0,0.002]
[1769778793780,0.42497911,2741.5,2741.0,0.002]
[1769778793999,4.24979106,2741.6,2741.0,0.002]
[1769778794853,4.24979106,2741.6,2740.8,0.002]
[1769778795185,4.24979106,2741.6,2740.3,0.02552788]
[1769778795884,4.24979106,2741.6,2740.1,0.02552788]
[1769778796092,4.24879106,2741.4,2740.3,0.02552788]
[1769778796982,4.24879106,2741.2,2739.9,0.02552788]
[1769778797159,5.01379106,2741.1,2740.1,0.02552788]
[1769778797359,5.01379106,2741.1,2739.9,0.02552788]
[1769778798760,5.01379106,2741.1,2739.7,0.02752788]
[1769778798980,4.24879106,2740.9,2739.9,0.02552788]
[1769778800464,4.24879106,2740.9,2740.1,0.02552788]
[1769778802190,4.24879106,2740.9,2739.9,0.02552788]
[1769778802385,4.24879106,2740.9,2740.1,0.02552788]
[1769778802890,4.24879106,2740.9,2740.1,0.02752788]
[1769778803090,0.48413738,2740.8,2740.1,0.02752788]
[1769778803656,4.73292844,2740.8,2740.1,0.002]
[1769778805495,4.24879106,2740.7,2739.9,0.002]
[1769778805710,4.43939035,2740.7,2739.9,0.002]
[1769778805987,4.24879106,2740.5,2739.9,0.002]
[1769778806496,4.24879106,2740.5,2739.7,0.002]
[1769778808003,4.24879106,2740.1,2739.0,0.02552788]
[1769778808178,5.01379106,2740.0,2739.2,0.02552788]
[1769778808503,5.01379106,2740.0,2739.0,0.02552788]
[1769778808721,0.50137911,2739.9,2739.2,0.02552788]
[1769778809006,0.50137911,2739.9,2739.0,0.02552788]
[1769778809573,0.50137911,2739.9,2738.9,3.3396308]
[1769778809774,0.50137911,2739.9,2739.2,0.02552788]
[1769778810102,4.75017017,2739.9,2739.0,0.02552788]
[1769778810303,0.55151702,2739.8,2739.2,0.02552788]
[1769778810602,0.765,2740.0,2739.4,0.02552788]
[1769778810806,0.765,2740.0,2739.6,0.02552788]
[1769778811234,0.5835679,2740.6,2739.8,0.02552788]
[1769778811408,4.43939035,2740.7,2740.0,0.02552788]
[1769778811605,4.43939035,2740.7,2739.3,3.33645764]
[1769778811779,4.43939035,2740.7,2739.7,0.02552788]
[1769778811984,4.43939035,2740.7,2739.9,0.02552788]
[1769778812170,0.19059929,2740.7,2740.1,0.02552788]
[1769778812372,0.1024,2740.9,2740.2,0.02552788]
[1769778812897,4.43935856,2741.3,2740.2,0.02552788]
[1769778813200,1.20893586,2741.2,2740.2,0.02552788]
[1769778813607,0.44393586,2741.2,2740.4,0.02552788]
[1769778813807,1.20893586,2741.2,2740.4,0.02552788]
[1769778816816,1.20893586,2741.2,2740.2,0.02552788]
[1769778817017,4.09028988,2740.9,2740.0,0.002]
[1769778817313,4.09028988,2740.9,2739.5,0.02552788]
[1769778817717,4.09028988,2740.7,2739.3,0.02552788]
[1769778818023,4.09028988,2740.7,2739.1,0.02552788]
[1769778818178,4.09028988,2740.5,2739.1,0.3616728]
[1769778818378,4.09028988,2740.5,2739.3,0.02552788]
[1769778819815,4.09028988,2740.5,2739.5,0.02552788]
[1769778820016,0.765,2740.4,2739.7,0.02552788]
[1769778820221,0.40902899,2740.6,2739.7,0.02552788]
[1769778820521,0.765,2740.5,2739.5,0.02552788]
[1769778820716,0.765,2740.5,2739.5,0.36396991]
[1769778821791,0.765,2740.5,2739.7,0.02552788]
[1769778822117,1.17402899,2740.6,2739.9,0.02552788]
[1769778822306,1.17402899,2740.6,2739.7,0.02552788]
[1769778822900,1.17402899,2740.6,2739.9,0.02552788]
[1769778823112,4.09028988,2740.5,2739.5,0.33844203]
[1769778823318,0.52643189,2740.4,2739.3,0.02552788]
[1769778823516,0.52643189,2740.4,2739.5,0.02552788]
[1769778824722,0.40902899,2740.6,2739.7,0.02552788]
[1769778824926,1.17402899,2740.6,2739.9,0.02552788]
[1769778825595,0.40902899,2740.6,2739.9,0.02552788]
[1769778825791,4.65511932,2741.1,2740.1,0.02552788]
[1769778825997,0.765,2741.0,2740.1,0.02552788]
[1769778827733,0.765,2741.0,2739.9,0.02552788]
[1769778828101,4.85528988,2741.0,2739.9,0.02552788]
[1769778828298,0.54201193,2740.9,2740.1,0.02552788]
[1769778828534,1.30701193,2740.9,2740.1,0.02552788]
[1769778829198,1.30701193,2740.9,2740.3,0.02552788]
[1769778829399,0.001,2741.0,2740.1,3.35643353]
[1769778829600,0.766,2741.0,2740.3,0.02552788]
[1769778830738,4.85628988,2741.0,2739.9,0.02552788]
[1769778832302,4.85628988,2741.0,2740.1,0.02552788]
[1769778834100,0.765,2740.9,2740.1,0.02552788]
[1769778834301,1.25062899,2740.9,2740.1,0.02552788]
[1769778835827,0.765,2740.9,2740.1,0.02552788]
[1769778836527,0.001,2741.0,2740.1,0.02552788]
[1769778836528,0.001,2741.0,2740.3,0.02552788]
[1769778836736,0.765,2740.9,2740.1,3.35458415]
[1769778836936,0.765,2740.9,2740.3,0.02552788]
[1769778838151,0.001,2741.0,2740.3,0.02552788]
[1769778838457,0.001,2741.0,2740.3,3.66240896]
[1769778840112,0.001,2740.8,2740.3,0.36353908]
[1769778840416,4.09128988,2740.8,2739.7,0.02552788]
[1769778840837,0.765,2740.7,2739.7,0.02552788]
[1769778841259,4.85528988,2740.7,2739.7,0.02552788]
[1769778842652,4.85528988,2740.7,2739.8,0.02552788]
[1769778843759,4.85528988,2740.7,2740.0,0.02552788]
[1769778843943,0.48562899,2740.6,2740.0,0.02552788]
[1769778844143,0.765,2740.7,2740.2,0.02552788]
[1769778844649,0.001,2740.8,2740.4,0.02552788]
[1769778846865,0.001,2740.8,2740.6,0.02552788]
[1769778848247,0.001,2740.8,2740.5,0.02552788]
[1769778851768,0.001,2740.6,2740.5,0.02552788]
[1769778854256,0.001,2740.6,2740.2,0.02552788]
[1769778854454,0.001,2740.6,2740.4,0.02552788]
[1769778860668,0.001,2740.6,2739.3,2.72316869]
[1769778860836,0.001,2740.6,2740.2,0.02552788]
[1769778861037,0.001,2740.6,2740.4,0.02552788]
[1769778861478,0.001,2740.6,2740.2,0.02552788]
[1769778862287,0.001,2740.6,2740.4,0.02552788]
[1769778862643,0.001,2740.6,2740.2,0.29813252]
[1769778862862,0.001,2740.6,2740.4,0.02552788]
[1769778863183,0.001,2740.6,2740.2,0.29813252]
[1769778864078,0.001,2740.6,2740.4,0.02552788]
[1769778866970,0.001,2740.6,2740.2,0.02552788]
[1769778867867,0.001,2740.6,2740.4,0.02552788]
[1769778871759,0.001,2740.8,2740.4,0.02552788]
[1769778871962,0.001,2740.8,2740.6,0.02552788]
[1769778874588,0.001,2740.8,2740.5,0.24874952]
[1769778874789,0.001,2740.8,2740.4,0.02552788]
[1769778875090,0.001,2740.8,2740.6,0.02552788]
[1769778875788,0.001,2740.8,2740.4,0.02552788]
[1769778875988,0.001,2740.8,2740.6,0.02552788]
[1769778877959,0.001,2740.8,2740.4,0.02552788]
[1769778878292,0.001,2740.8,2740.2,0.02552788]
[1769778878589,0.001,2740.8,2740.4,0.02552788]
[1769778879392,3.54592314,2740.8,2740.2,0.02552788]
[1769778879575,3.54592314,2740.8,2740.4,0.02552788]
[1769778883090,3.54592314,2740.8,2740.2,0.02552788]
[1769778883289,3.54592314,2740.8,2740.4,0.02552788]
[1769778884595,0.001,2740.8,2740.4,0.02552788]
[1769778884905,0.001,2740.8,2740.6,0.02552788]
[1769778885399,3.54592314,2740.8,2740.4,0.02552788]
[1769778885788,0.001,2740.8,2740.4,0.02552788]
[1769778885990,0.001,2740.8,2740.6,0.02552788]
[1769778886508,0.001,2740.8,2740.6,0.02752788]
[1769778888982,0.001,2740.8,2740.6,0.002]
[1769778890128,3.54592314,2740.8,2740.4,0.002]
[1769778891496,3.54592314,2740.8,2740.1,0.02552788]
[1769778891794,3.54492314,2740.6,2740.1,0.02552788]
[1769778892922,3.54492314,2740.6,2740.0,0.02552788]
[1769778898313,3.54492314,2740.6,2739.8,0.02552788]
[1769778899526,3.54492314,2740.6,2740.0,0.02552788]
[1769778899823,3.54492314,2740.6,2739.8,0.02552788]
[1769778900017,3.54492314,2740.4,2740.2,0.002]
[1769778900934,3.54492314,2740.4,2739.6,0.02552788]
[1769778901599,3.54492314,2740.4,2739.5,0.02552788]
[1769778901789,3.54492314,2740.4,2739.6,0.02552788]
[1769778901790,3.54492314,2740.3,2739.6,0.02552788]
[1769778901992,3.54492314,2740.3,2739.1,0.02552788]
[1769778902194,5.52997326,2740.4,2739.4,0.02552788]
[1769778902195,3.54492314,2740.0,2739.4,0.02552788]
[1769778902428,3.54492314,2740.0,2739.3,0.002]
[1769778902726,3.54492314,2740.0,2739.4,0.02552788]
[1769778908307,0.765,2740.1,2739.6,0.02552788]
[1769778908507,0.49502294,2740.0,2739.7,0.02552788]
[1769778909828,0.49502294,2740.0,2739.4,0.02552788]
[1769778910134,3.27773978,2740.2,2739.6,0.02552788]
[1769778911429,3.27773978,2740.2,2739.4,0.02552788]
[1769778911628,3.27773978,2740.2,2739.6,0.02552788]
[1769778912338,3.27773978,2740.2,2739.6,0.02752788]
[1769778913339,3.27773978,2740.2,2739.6,0.002]
[1769778913544,3.27773978,2740.0,2739.6,0.002]
[1769778924773,0.19058937,2740.4,2739.9,0.02552788]
[1769778924931,3.27873978,2740.6,2740.1,0.02552788]
[1769778925261,1.09287398,2740.5,2740.1,0.02552788]
[1769778926540,3.60561376,2740.5,2739.9,0.02552788]
[1769778927370,3.27773978,2740.5,2739.7,1.64970787]
[1769778927528,3.27773978,2740.5,2739.9,0.02552788]
[1769778928490,0.766,2740.6,2740.1,0.02552788]
[1769778928687,0.766,2740.6,2739.8,1.59357923]
[1769778928983,0.766,2740.6,2739.9,0.02552788]
[1769778929140,4.04373978,2740.6,2739.9,0.02552788]
[1769778931552,3.27873978,2740.6,2739.9,0.02552788]
[1769778931889,4.04373978,2740.6,2739.9,0.02552788]
[1769778932097,4.04373978,2740.6,2739.8,1.59357923]
[1769778932098,3.27773978,2740.0,2739.6,0.002]
[1769778932394,3.27773978,2740.0,2739.3,0.002]
[1769778934683,3.27773978,2740.0,2739.3,0.02752788]
[1769778934889,0.765,2740.1,2739.6,0.02552788]
[1769778936086,0.765,2740.1,2739.8,0.002]
[1769778937890,3.15870884,2740.2,2739.8,0.002]
[1769778938056,3.92370884,2740.2,2739.8,0.002]
[1769778938255,3.3344242,2740.1,2739.8,0.002]
[1769778939958,3.3344242,2740.0,2739.4,0.002]
[1769778941863,3.3344242,2740.2,2739.5,0.02552788]
[1769778942064,0.765,2740.1,2739.6,0.02552788]
[1769778943110,3.3354242,2740.4,2739.8,0.02552788]
[1769778943317,0.001,2740.4,2740.0,0.02552788]
[1769778946809,0.001,2740.4,2740.2,0.02552788]
[1769778947009,0.001,2740.4,2740.0,0.02552788]
[1769778947803,0.001,2740.4,2739.9,0.02552788]
[1769778948170,3.3354242,2740.4,2739.8,0.02552788]
[1769778948706,3.66906662,2740.4,2739.3,1.40045331]
[1769778948875,5.67509488,2740.4,2739.3,1.40045331]
[1769778949076,3.3344242,2740.3,2739.6,0.02552788]
[1769778949777,3.3354242,2740.2,2739.3,1.40045331]
[1769778949976,3.3354242,2740.2,2739.6,0.02552788]
[1769778950873,3.3354242,2740.2,2739.7,0.02552788]
[1769778951305,3.3354242,2740.2,2739.6,0.02552788]
[1769778951605,3.3354242,2740.2,2739.7,0.02552788]
[1769778952004,3.3344242,2740.1,2739.3,0.002]
[1769778952173,3.3344242,2740.0,2739.4,0.002]
[1769778956478,3.3344242,2740.0,2739.5,0.02552788]
[1769778957012,3.3344242,2740.0,2739.4,0.002]
[1769778958088,3.83457181,2740.0,2739.4,0.002]
[1769778959916,3.3344242,2740.0,2739.5,0.02552788]
[1769778961437,3.3354242,2740.0,2739.5,0.02552788]
[1769778961937,3.3354242,2740.0,2739.4,0.002]
[1769778962331,0.001,2740.0,2739.4,0.002]
[1769778962527,3.3354242,2740.0,2739.4,0.002]
[1769778962733,3.83567181,2740.0,2739.4,0.002]
[1769778966348,0.001,2740.0,2739.5,1.26548551]
[1769778966527,0.001,2740.0,2739.7,0.02552788]
[1769778967139,0.001,2740.0,2739.5,0.02552788]
[1769778969646,3.20761927,2740.2,2739.7,0.02552788]
[1769778969849,3.20761927,2740.2,2739.5,0.02552788]
[1769778970052,3.20761927,2740.2,2739.7,0.02552788]
[1769778970949,3.20761927,2740.2,2739.5,0.02552788]
[1769778971124,3.20761927,2740.2,2739.6,1.57675364]
[1769778971320,3.20761927,2740.2,2739.7,0.02552788]
[1769778972937,0.001,2739.8,2739.7,0.02552788]
[1769778973455,0.001,2740.4,2739.7,0.02552788]
[1769778973456,0.001,2740.4,2740.1,0.02552788]
[1769778973625,0.001,2740.4,2739.9,1.24686303]
[1769778974151,0.001,2740.4,2740.1,0.02552788]
[1769778974557,0.001,2740.4,2740.0,1.24115083]
[1769778974850,0.001,2740.4,2740.2,0.02552788]
[1769778975667,0.001,2740.4,2740.0,1.24115083]
[1769778975822,0.001,2741.0,2740.3,1.22884788]
[1769778976023,0.001,2741.0,2740.5,0.02552788]
[1769778976928,0.001,2741.0,2740.7,0.02552788]
[1769778978061,3.20761927,2741.0,2740.7,0.02552788]
[1769778978265,3.20761927,2741.0,2740.5,0.02552788]
[1769778981158,3.20761927,2741.0,2739.7,0.02552788]
[1769778981159,3.20761927,2741.0,2740.4,0.02552788]
[1769778981338,3.20661927,2740.8,2739.9,1.17519977]
[1769778981540,3.20661927,2740.5,2739.7,0.02552788]
[1769778981859,3.20661927,2740.5,2739.9,0.02552788]
[1769778982628,3.20661927,2740.5,2739.7,0.02552788]
[1769778982847,3.20661927,2740.5,2739.4,0.002]
[1769778982848,3.20661927,2740.2,2739.4,0.002]
[1769778983040,3.20661927,2740.2,2739.5,0.02552788]
[1769778983342,0.85470717,2740.5,2739.4,0.002]
[1769778983343,3.20661927,2739.9,2739.4,0.002]
[1769778983530,3.20661927,2739.9,2739.3,0.002]
[1769778985868,3.20661927,2739.9,2739.4,0.002]
[1769778994266,3.20661927,2739.8,2739.4,0.002]
[1769778994479,3.20661927,2739.4,2738.9,0.002]
[1769778994680,3.20661927,2739.4,2738.4,1.1688102]
[1769778994681,3.20661927,2739.1,2738.4,0.02752788]
[1769778994885,0.765,2739.4,2738.4,0.002]
[1769778994886,3.20661927,2738.8,2738.4,0.002]
[1769778995078,3.20661927,2738.8,2738.3,0.002]
[1769778997177,2.93037551,2738.6,2738.1,0.02552788]
[1769778997383,2.93037551,2738.6,2738.5,0.002]
[1769778997593,2.93037551,2738.6,2738.0,0.002]
[1769778997925,0.765,2738.7,2737.6,0.02552788]
[1769778997926,2.93037551,2738.2,2737.6,0.02552788]
[1769778998191,2.93037551,2738.2,2737.4,0.02552788]
[1769778998560,2.93037551,2738.2,2737.2,0.02752788]
[1769778998757,2.93037551,2738.2,2737.4,0.02552788]
[1769778999104,2.93037551,2737.9,2737.1,0.02552788]
[1769778999310,3.69537551,2737.9,2737.3,0.02552788]
[1769778999463,4.06491306,2737.9,2737.3,0.02552788]
[1769779002810,2.93037551,2737.8,2737.1,0.02552788]
[1769779003002,2.93037551,2737.8,2736.9,0.02752788]
[1769779003167,2.93037551,2737.8,2737.1,0.02552788]
[1769779004812,2.93037551,2737.8,2736.9,0.02752788]
[1769779005111,2.93037551,2737.7,2737.1,0.02552788]
[1769779006314,2.93037551,2737.7,2737.1,4.696e-05]
[1769779009091,2.93037551,2737.7,2737.3,0.002]
[1769779011419,1.13453755,2737.9,2737.4,0.02552788]
[1769779011420,3.29991306,2737.9,2737.4,0.02552788]
[1769779011628,3.29991306,2737.9,2737.3,0.02752788]
[1769779011833,3.29991306,2737.9,2737.3,4.09e-06]
[1769779012039,0.001,2738.6,2737.5,0.02552788]
[1769779012040,2.93037551,2738.4,2737.5,0.02552788]
[1769779012213,5.34463584,2738.6,2737.9,0.02552788]
[1769779012214,2.93137551,2738.6,2737.9,0.02552788]
[1769779012412,2.93137551,2738.6,2738.1,0.02347788]
[1769779012413,0.190559,2738.4,2738.1,0.02347788]
[1769779012727,2.93137551,2738.6,2738.3,0.02552788]
[1769779012728,0.001,2738.6,2738.3,0.02552788]
[1769779012930,0.001,2738.6,2738.4,0.02552788]
[1769779013311,2.93037551,2739.1,2738.4,0.02552788]
[1769779013497,2.93037551,2739.1,2738.3,0.02552788]
[1769779014033,3.30001306,2739.1,2737.7,0.02552788]
[1769779014335,3.30001306,2739.1,2738.1,0.02552788]
[1769779015235,3.30001306,2739.1,2738.3,0.02552788]
[1769779015622,3.30001306,2739.1,2738.1,0.02552788]
[1769779015936,3.30001306,2739.1,2738.3,0.02552788]
[1769779016135,2.93037551,2738.9,2738.3,0.02552788]
[1769779017654,2.93037551,2738.9,2737.3,1.08113777]
[1769779017937,2.93037551,2738.9,2737.7,0.02552788]
[1769779020604,2.93037551,2738.9,2737.9,0.02552788]
[1769779020846,2.93037551,2738.9,2738.1,0.02552788]
[1769779021013,3.26407319,2738.8,2737.9,0.02552788]
[1769779021212,3.26407319,2738.8,2738.0,0.02552788]
[1769779021552,3.26407319,2738.8,2737.9,0.02552788]
[1769779021702,3.26407319,2738.8,2738.0,0.02552788]
[1769779021907,3.26407319,2738.8,2737.9,0.02552788]
[1769779022134,3.25678283,2738.7,2738.0,0.02552788]
[1769779022634,2.93037551,2739.1,2738.4,0.02552788]
[1769779022950,0.001,2738.7,2738.2,0.02552788]
[1769779023130,0.001,2738.7,2738.5,0.02552788]
[1769779023311,0.001,2738.7,2738.6,0.02552788]
[1769779023511,7.35152551,2739.9,2738.6,1.04272412]
[1769779023512,2.93037551,2739.7,2738.6,1.04272412]
[1769779023818,1.0281901,2739.7,2738.9,0.02552788]
[1769779024017,0.766,2739.9,2738.2,0.02552788]
[1769779024018,2.93037551,2739.6,2738.2,0.02552788]
[1769779024239,2.93037551,2739.6,2738.4,0.02552788]
[1769779024440,2.93037551,2739.6,2738.6,0.02552788]
[1769779024743,2.93037551,2739.6,2738.9,0.02552788]